Cogmind - Beta 14 @@@ ROGUE MODE // 2024.10.04 @ 04:44:25 Player: polar Result: Destroyed by G-67 Veteran with Field Laser Performance ------------- Evolutions (5) 2500 Regions Visited (19) 3800 Robots Destroyed (255) 1275 Value Destroyed (10702) 10702 Prototype IDs (42) 840 Alien Tech Used (0) 0 Bonus (6031) 6031 TOTAL SCORE: 25148 Bonus ------- High Alert Combat Kills 2856 Follower Combat Kills 2240 Entered Garrisons 200 Network Hubs Disabled 400 Registered with UFD 300 Met R17 at Cetus 500 Friendly Fire -465 Cogmind --------- Core Integrity 0/1000 Matter 197/300 Energy 100/100 System Corruption 57% Temperature Cool (1) Movement Flying (55) Location -5/Upper Caves Parts ------- > --- POWER (1) -------- (None) > --- PROPULSION (5) --- Makeshift Flight Unit > --- UTILITY (7) ------ Improved Trap Scanner Advanced Terrain Scanner Improved Targeting Computer Experimental Targeting Computer > --- WEAPON (4) ------- (None) > --- INVENTORY (5) ---- Compact Particle Reactor Improved Cryofiber Web A0-MCA's Component Scanner Multitool Spear Peak State ------------ > --- POWER ------------ Quantum Reactor > --- PROPULSION ------- Armored Medium Treads Centrium Heavy Treads Centrium Heavy Treads > --- UTILITY ---------- Advanced Heat Sink High-capacity Storage Unit Machine Analyzer Experimental Targeting Computer Improved Transmission Jammer Centrium Medium Armor Plating System Guard > --- WEAPON ----------- KE Penetrator KE Penetrator Advanced KE Penetrator Scatter Rocket Array > --- INVENTORY -------- Improved Treads Armored Medium Treads Improved Cryofiber Web Advanced Signal Interpreter Advanced Terrain Scanner Makeshift Salvage Targeting Computer Kinecellerator Weapon Cycler Centrium Medium Armor Plating A0-MCA's Component Scanner High-powered Tractor Beam Advanced Variable Charge Gun Heavy Assault Rifle Advanced KE Penetrator Improved Remote Datajack Plasma Cutter Multitool [Rating: 120] Favorites ----------- Power Heavy Ion Engine Engine Heavy Ion Engine Power Core Fission Core Reactor Antimatter Reactor Propulsion Light Treads Treads Light Treads Leg Aluminum Leg Wheel Subdweller Monowheel Flight Unit Electron Diverter Utility Huge Storage Unit Device Improved Terrain Scanner Storage Huge Storage Unit Processor Machine Analyzer Hackware Hacking Suite Protection Centrium Medium Armor Plating Weapon Heavy Machine Gun Energy Gun Advanced Variable Charge Gun Ballistic Gun Heavy Machine Gun Ballistic Cannon Battle Cannon Launcher Scatter Rocket Array Special Weapon Remote Datajack Impact Weapon Hammer Slashing Weapon Makeshift Axe Piercing Weapon Makeshift Spear Build | -11 -10 -10 -10 -8 -8 -8 -8 -8 -8 -6 -6 -6 -6 -6 -5 -5 -5 -5 -5 ------- Run | Yrd Mat Min Sub Mat Gar Mat Sto Rec Scr Fac Ext Cet Arc Hub Fac Was Fac Upp Upp Slots Evolved 10 | . . . . 4 . . . . . 4 . . . . 2 . . . . Power . | . . . . . . . . . . . . . . . . . . . . Propulsion 3 | . . . . 2 . . . . . 1 . . . . . . . . . Utility 5 | . . . . 1 . . . . . 2 . . . . 2 . . . . Weapon 2 | . . . . 1 . . . . . 1 . . . . . . . . . Parts Attached 329 | 9 1 . 30 10 37 11 25 5 10 67 24 20 5 10 7 3 47 7 1 Power 25 | 1 . . 6 1 2 . 1 . . 5 2 3 . . . 1 2 1 . Engine 16 | 1 . . 6 1 2 . 1 . . 1 2 2 . . . . . . . Core 5 | . . . . . . . . . . 4 . . . . . . . 1 . Reactor 4 | . . . . . . . . . . . . 1 . . . 1 2 . . Propulsion 80 | 4 . . 8 5 9 . 9 2 1 5 11 9 1 1 . . 12 2 1 Treads 46 | 2 . . 1 . 2 . 4 2 1 5 10 9 1 1 . . 8 . . Leg 14 | . . . . 1 7 . 5 . . . 1 . . . . . . . . Wheel 13 | 2 . . 7 4 . . . . . . . . . . . . . . . Hover . | . . . . . . . . . . . . . . . . . . . . Flight 7 | . . . . . . . . . . . . . . . . . 4 2 1 Utility 108 | 2 1 . 3 2 6 3 6 3 7 36 4 5 2 2 6 1 16 3 . Device 67 | 1 . . 3 2 5 2 5 2 2 25 1 2 1 2 3 . 9 2 . Storage 6 | 1 1 . . . . 1 . 1 1 1 . . . . . . . . . Processor 13 | . . . . . 1 . . . 2 4 . 1 . . 1 1 2 1 . Hackware 2 | . . . . . . . 1 . . 1 . . . . . . . . . Protection 20 | . . . . . . . . . 2 5 3 2 1 . 2 . 5 . . Artifact . | . . . . . . . . . . . . . . . . . . . . Weapon 116 | 2 . . 13 2 20 8 9 . 2 21 7 3 2 7 1 1 17 1 . Energy Gun 10 | . . . 1 . . . 2 . . . . 1 . 3 . . 3 . . Energy Cannon . | . . . . . . . . . . . . . . . . . . . . Ballistic Gun 63 | 2 . . 4 2 11 4 7 . 1 11 4 2 2 3 1 . 9 . . Ballistic Cannon 3 | . . . 2 . . . . . 1 . . . . . . . . . . Launcher 11 | . . . . . 3 . . . . 1 2 . . 1 . 1 3 . . Special Weapon 6 | . . . . . . . . . . 3 1 . . . . . 2 . . Impact Weapon 5 | . . . 5 . . . . . . . . . . . . . . . . Slashing Weapon 14 | . . . . . 5 3 . . . 6 . . . . . . . . . Piercing Weapon 4 | . . . 1 . 1 1 . . . . . . . . . . . 1 . Special Melee Weapon . | . . . . . . . . . . . . . . . . . . . . Unidentified Prototypes 17 | . . . . 1 . . 4 . . 3 1 4 . . . . 4 . . Parts Lost 58 | . . . 5 1 8 . 1 . . 6 5 . . . 2 2 24 3 1 Power 4 | . . . 2 . . . . . . . . . . . . . 2 . . Propulsion 22 | . . . 3 . 4 . . . . 1 3 . . . 1 . 7 2 1 Utility 18 | . . . . 1 2 . 1 . . 4 . . . . 1 2 6 1 . Weapon 14 | . . . . . 2 . . . . 1 2 . . . . . 9 . . Highest Loss Streak 22 | . . . 2 1 3 . 1 . . 2 2 . . . 2 2 19 22 1 To Critical Strikes 1 | . . . . . . . . . . . . . . . . . 1 . . Average Slot Usage (%) 94 | . 100 100 99 98 97 100 99 99 93 97 98 92 86 85 85 79 82 23 26 Engine 7 | . 14 14 13 9 9 9 9 9 9 3 4 5 6 6 5 . . . . Treads 25 | . 28 28 6 3 4 . 5 36 36 32 31 26 20 20 14 11 15 . . Leg 3 | . . . . 5 25 36 30 . . . 1 . . . . . . . . Wheel 2 | . . . 21 26 4 . . . . . . . . . . . . . . Device 8 | . 14 14 14 17 13 9 8 8 4 11 6 6 10 6 14 9 10 6 11 Storage 8 | . 14 14 14 9 9 9 9 9 9 6 6 6 6 6 5 5 4 . . Processor 7 | . . . . . 3 9 9 9 5 11 13 13 13 13 17 21 16 8 11 Protection 1 | . . . . . . . . . 2 . 4 5 1 6 2 . 4 . . Ballistic Gun 23 | . 28 28 11 16 17 23 26 27 27 22 25 20 25 23 17 17 17 . . Peak Build Rating 120 | 7 7 8 22 30 39 40 42 36 41 71 77 104 107 111 119 111 120 33 24 Average Rating 47 | 5 7 7 15 27 31 39 39 35 34 57 67 78 103 108 114 108 108 22 22 On Entrance 48 | . 7 7 8 18 29 39 40 34 36 40 71 57 104 107 111 113 103 31 22 Naked Turns . | . . . . . . . . . . . . . . . . . . . . Heaviest Build 118 | 13 28 28 34 39 47 44 49 104 115 118 80 83 86 89 87 83 90 10 4 Greatest Support 188 | 40 40 40 40 46 55 55 80 80 80 128 128 180 183 188 188 160 187 16 8 Greatest Overweight (x) 2 | . . . 1 2 2 . 1 1 1 1 . 1 . . . . 1 1 1 Average Overweight (x) . | . . . . . . . . . 1 . . . . . . . . . . Largest Inventory Capacity 25 | 8 15 15 15 15 15 15 15 25 25 25 20 20 20 20 20 20 20 5 5 Average Capacity 20 | 7 14 15 15 15 15 15 15 21 25 22 20 20 20 20 20 20 19 5 5 Most Carried 25 | 3 4 12 15 15 15 15 15 25 25 25 20 20 20 20 20 20 20 5 5 Average Carried 19 | 1 3 9 14 14 14 14 14 20 23 21 19 19 20 20 18 20 17 4 5 Final Capacity 25 | 8 15 15 15 15 15 15 15 25 25 20 20 20 20 20 20 20 5 5 5 Final Carried 25 | 3 4 12 14 15 15 15 15 25 25 20 19 20 20 20 20 20 5 5 5 Class Distribution -------------------- 20% | Commander-Skirmisher 19% | Commander-Gunner 14% | Scavenger-Gunner 12% | Mutant 8% | Scavenger-Skirmisher 7% | Commander-Tank 6% | Scavenger-Mutant 5% | Gunner Dominant Class ---------------- Mutant | -10/Materials Mutant | -10/Mines Mutant | -10/Subcaves Mutant | -8/Materials Scavenger-Mutant | -8/Garrison Scavenger-Skirmisher | -8/Materials Scavenger-Gunner | -8/Storage Commander-Skirmisher | -8/Recycling Commander-Gunner | -8/Scraptown Commander-Skirmisher | -6/Factory Commander-Gunner | -6/Extension Commander-Gunner | -6/Cetus Scavenger-Gunner | -6/Archives Scavenger-Gunner | -6/Hub_04(d) Scavenger-Skirmisher | -5/Factory Scavenger-Skirmisher | -5/Waste Scavenger-Gunner | -5/Factory Mutant | -5/Upper Caves Mutant | -5/Upper Caves Resources | -11 -10 -10 -10 -8 -8 -8 -8 -8 -8 -6 -6 -6 -6 -6 -5 -5 -5 -5 -5 ----------- Run | Yrd Mat Min Sub Mat Gar Mat Sto Rec Scr Fac Ext Cet Arc Hub Fac Was Fac Upp Upp Matter Collected 10945 | 188 73 109 423 204 942 199 815 409 379 2331 1549 379 118 903 181 135 1470 87 51 Remotely 1612 | . . . . . 232 . . . . 519 . . . 135 . . 726 . . Salvage Created 11476 | 20 73 235 304 289 731 251 785 494 . 1178 1468 59 232 2548 181 277 2351 . . Parts 579 | 2 5 19 22 12 47 17 48 15 . 56 57 2 9 131 13 2 122 . . Haulers Intercepted 5 | . . . . 2 . . . . . . . . . 1 . . 2 . . Recyclers Shooed 4 | . . . . . . . . . . 2 . . . . . . 2 . . Parts Field Recycled . | . . . . . . . . . . . . . . . . . . . . Retrieved Matter . | . . . . . . . . . . . . . . . . . . . . Parts Self-Destructed 8 | . . . 7 . . . . . . . . . . . . . . 1 . Prevented . | . . . . . . . . . . . . . . . . . . . . Kills | -11 -10 -10 -10 -8 -8 -8 -8 -8 -8 -6 -6 -6 -6 -6 -5 -5 -5 -5 -5 ------- Run | Yrd Mat Min Sub Mat Gar Mat Sto Rec Scr Fac Ext Cet Arc Hub Fac Was Fac Upp Upp Combat Hostiles Destroyed 172 | . 2 6 6 2 28 4 13 3 . 15 15 1 3 36 3 1 34 . . Melee 4 | . . . 2 . 2 . . . . . . . . . . . . . . Guns 125 | . 2 6 3 2 11 4 13 3 . 12 14 1 3 30 3 1 17 . . Cannons 1 | . . . 1 . . . . . . . . . . . . . . . . AOE 42 | . . . . . 15 . . . . 3 1 . . 6 . . 17 . . Classes Destroyed 23 | 1 1 1 3 3 3 2 2 . . 1 1 . . 1 . 1 3 . . Worker 19 | . . . . . . . . . . 3 1 . . 9 . . 6 . . Builder 17 | . . . . . . 1 2 . . . 1 . . 6 . . 7 . . Tunneler 5 | 1 . 3 . . . . . . . 1 . . . . . . . . . Hauler 5 | . . . . 2 . . . . . . . . . 1 . . 2 . . Recycler 21 | . . . . 1 . . 1 5 . 2 5 . . 3 . . 4 . . Mechanic 1 | . . . . . . . . . . . . . . . . . 1 . . Operator 2 | . . . . . . . 1 . . . . . . . . . 1 . . Watcher 11 | . . . . . . 4 2 . . . 1 . . 3 . . 1 . . Swarmer 18 | . . 4 1 . 11 2 . . . . . . . . . . . . . Saboteur 1 | . . . . . . . . . . . . . . . . . 1 . . Grunt 76 | . 2 2 . 1 8 2 7 . . 13 6 . . 23 . . 12 . . Brawler 5 | . . . . . . . 1 . . . 2 . . 2 . . . . . Duelist 8 | . . . . . 2 . . . . . . . . 4 . . 2 . . Protector 2 | . . . . . . . . . . . . . . 1 . . 1 . . Sentry 25 | . . . . 1 4 . 4 3 . 1 5 . 3 2 . . 2 . . Specialist 3 | . . . . . . . . . . . . . . . . . 3 . . Hunter 17 | . . . . . 2 . 1 . . 1 1 . . 2 2 . 8 . . Programmer 10 | . . . . . 1 . . . . 1 . . . 2 1 . 5 . . Behemoth 1 | . . . . . . . . . . . 1 . . . . . . . . Compactor 1 | . . . . . . . . . . . . . . . . 1 . . . Cetus Guard 1 | . . . . . . . . . . . . 1 . . . . . . . Artisan 1 | . . . 1 . . . . . . . . . . . . . . . . Cobbler 1 | . . . 1 . . . . . . . . . . . . . . . . Subdweller 5 | . . . 5 . . . . . . . . . . . . . . . . Guerrilla 1 | . . . . . . . . . . . . . . 1 . . . . . Best Kill Streak 22 | 1 1 3 2 2 15 6 9 2 . 7 5 1 3 16 2 1 22 . . Combat Bots Only 15 | . 1 3 2 1 15 2 6 1 . 5 3 1 3 9 2 1 12 . . Max Kills in Single Turn 7 | 1 1 1 1 1 4 1 2 1 . 3 3 1 1 7 1 1 6 . . Gunslinging 1 | . . . . . 1 . . . . . 1 . . 1 . . 1 . . Exploded 5 | . . . . . 4 . . . . 3 1 . . 4 . . 5 . . Melee 1 | . . . 1 . 1 . . . . . . . . . . . . . . Uniques/NPCs Destroyed . | . . . . . . . . . . . . . . . . . . . . Combat | -11 -10 -10 -10 -8 -8 -8 -8 -8 -8 -6 -6 -6 -6 -6 -5 -5 -5 -5 -5 -------- Run | Yrd Mat Min Sub Mat Gar Mat Sto Rec Scr Fac Ext Cet Arc Hub Fac Was Fac Upp Upp Hostile Shots Fired 1217 | . 3 20 52 16 82 11 35 6 . 120 193 11 3 127 23 . 477 27 11 Missed 310 | . . 3 15 1 23 5 10 2 . 31 55 3 1 21 7 . 116 14 3 Damage Taken 16118 | . 34 181 851 229 1172 62 432 60 . 1562 1506 208 74 1936 253 251 6886 272 149 Core 1812 | . 34 7 131 . 154 13 54 . . 184 172 . . 52 . . 720 160 131 Absorbed by Shields . | . . . . . . . . . . . . . . . . . . . . Reduced by Siege Mode 739 | . . . . . . . . . . . . . . 150 21 . 568 . . Ignored by Resistances 24 | . . . . . . . . . . 24 . . . . . . . . . Regen/Repaired (Parts) 843 | . . . . . . . 100 . . 76 . . . . . . 667 . . Core Remaining (%) 60 | 100 . . 31 . . . . . 59 . . . . 52 . . . . . Volleys Fired 475 | 1 8 26 40 12 40 11 45 17 . 42 56 11 4 71 6 8 77 . . Largest 4 | 2 2 2 2 2 3 3 3 3 . 4 4 4 4 4 4 4 4 . . Hottest 185 | 40 40 40 69 56 90 90 90 90 . 118 118 165 130 183 185 153 171 . . Shots Fired 1294 | 2 16 52 63 24 92 34 123 45 . 141 180 38 17 215 24 25 203 . . Gun 1214 | 2 16 52 37 24 79 34 123 45 . 137 164 38 17 212 24 24 186 . . Cannon 26 | . . . 26 . . . . . . . . . . . . . . . . Launcher 28 | . . . . . 13 . . . . 1 2 . . 3 . 1 8 . . Special 26 | . . . . . . . . . . 3 14 . . . . . 9 . . Kinetic 1182 | 2 16 52 58 24 92 34 123 45 . 138 164 36 17 181 18 24 158 . . Thermal 72 | . . . 5 . . . . . . . . 2 . 31 6 . 28 . . Explosive 14 | . . . . . . . . . . . 2 . . 3 . 1 8 . . Electromagnetic . | . . . . . . . . . . . . . . . . . . . . Robot Hit Streak 25 | 2 6 10 11 6 11 3 6 6 . 19 14 17 5 17 18 6 25 . . Robot Miss Streak 15 | . 2 4 3 2 4 3 6 2 . 5 15 1 1 3 1 4 4 . . Penetration Max 2 | . . . . . . . . . . 1 2 1 . 1 . . 1 . . Secondary Targets 31 | . . . 1 . 3 . 3 . . 3 7 . . 7 1 . 6 . . Max Gunslinging Chain 1 | . . . 1 . 1 . 1 . . 1 1 . . 1 1 . 1 . . Shots Hit Robots 859 | 2 8 35 40 24 62 14 56 20 . 106 139 31 11 132 14 9 156 . . Core Hits 614 | 2 4 16 15 6 46 12 27 8 . 66 65 16 6 134 7 5 179 . . Critical Kills 21 | . . . . . . 1 1 . . 1 . . 2 12 1 . 3 . . Critical Parts Destroyed 26 | . . . 1 . 1 . 1 . . 1 . . . 12 2 . 8 . . Critical Strikes 50 | . . . 1 . 1 1 2 . . 2 . . 2 24 3 1 13 . . Destroy 50 | . . . 1 . 1 1 2 . . 2 . . 2 24 3 1 13 . . Melee Attacks 206 | . . . 38 17 112 13 . . . 26 . . . . . . . . . Impact 18 | . . . 18 . . . . . . . . . . . . . . . . Slashing 110 | . . . . . 75 9 . . . 26 . . . . . . . . . Piercing 78 | . . . 20 17 37 4 . . . . . . . . . . . . . Sneak Attacks 10 | . . . 2 3 . . . . . 5 . . . . . . . . . Combat Hostiles . | . . . . . . . . . . . . . . . . . . . . Follow-up Attacks . | . . . . . . . . . . . . . . . . . . . . Damage Inflicted 29110 | 17 66 276 800 608 2214 340 1384 467 . 3238 3424 691 292 6360 464 604 7865 . . Guns 18522 | 17 66 276 405 288 929 340 1384 467 . 2256 2718 691 292 4280 464 212 3437 . . Cannons 125 | . . . 125 . . . . . . . . . . . . . . . . Explosions 9284 | . . . . . 1139 . . . . 565 706 . . 2062 . 392 4420 . . Melee 1123 | . . . 270 320 146 . . . . 387 . . . . . . . . . Ramming 56 | . . . . . . . . . . 30 . . . 18 . . 8 . . Kinetic 18786 | 17 66 276 497 288 2068 340 1384 467 . 2458 2718 665 292 3943 305 212 2790 . . Thermal 1202 | . . . 33 . . . . . . . . 26 . 337 159 . 647 . . Explosive 7444 | . . . . . . . . . . . 706 . . 1926 . 392 4420 . . Electromagnetic 499 | . . . . . . . . . . 363 . . . 136 . . . . . Impact . | . . . . . . . . . . . . . . . . . . . . Slashing 387 | . . . . . . . . . . 387 . . . . . . . . . Piercing 736 | . . . 270 320 146 . . . . . . . . . . . . . . Highest Corruption 57 | . . . . . 3 3 3 3 . 6 6 6 6 2 2 22 57 57 57 Average Corruption 6 | . . . . . 3 3 3 3 . 5 6 6 4 1 1 12 27 57 57 Corruption Purged 6 | . . . . . . . . . . . . . 6 . . . . . . Corruption Blocked . | . . . . . . . . . . . . . . . . . . . . Effects 271 | . . . . . 29 8 13 32 . 25 56 19 2 4 1 9 60 9 4 Message Errors 68 | . . . . . 5 3 4 9 . 9 14 4 1 2 . 2 12 2 1 Matter Fused 54 | . . . . . 5 1 2 6 . 2 18 2 . . . 3 12 2 1 Heat Flow Errors 41 | . . . . . 7 2 1 5 . 5 7 5 . 1 . 1 6 1 . Energy Discharges 18 | . . . . . 1 . 2 3 . 5 3 2 . . . 1 1 . . Parts Rejected 2 | . . . . . . . . . . . . . . . . . 2 . . Data Loss (minor) 43 | . . . . . 8 1 4 6 . 2 7 4 . 1 1 1 6 1 1 Data Loss (major) 10 | . . . . . 3 . . 1 . 1 2 . . . . . 3 . . Misfires 14 | . . . . . . 1 . 2 . 1 4 1 1 . . . 4 . . Alerts 2 | . . . . . . . . . . . 1 . . . . . . . 1 Misdirections 7 | . . . . . . . . . . . . . . . . 1 3 3 . Weapon Failures 12 | . . . . . . . . . . . . 1 . . . . 11 . . Overload Shots . | . . . . . . . . . . . . . . . . . . . . Overflow Damage 200 | . . . 4 . 32 . . . . 139 3 . . . . . 22 . . Projectiles 4 | . . . 4 . . . . . . . . . . . . . . . . Explosions 57 | . . . . . 32 . . . . . 3 . . . . . 22 . . Melee 139 | . . . . . . . . . . 139 . . . . . . . . . Knockbacks 1 | . . . 1 . . . . . . . . . . . . . . . . Impact . | . . . . . . . . . . . . . . . . . . . . Kinetic 1 | . . . 1 . . . . . . . . . . . . . . . . Secondary . | . . . . . . . . . . . . . . . . . . . . Self-Inflicted Damage 558 | . . . . . 143 . . . . 26 . . . 176 . . 213 . . Shots 17 | . . . . . 4 . . . . 1 . . . 4 . . 8 . . Rammed 7 | . . . . . . . . . . 5 . . . 1 . . 1 . . Targets Rammed 9 | . . . . . . . . . . 5 . . . 2 . . 2 . . Kicked . | . . . . . . . . . . . . . . . . . . . . Crushed 2 | . . . . . . . . . . . . . . 1 . . 1 . . Highest Temperature 443 | . 12 18 . 25 267 236 264 233 . 232 337 225 32 443 119 74 298 85 . Average Temperature 69 | . 9 10 . 9 58 57 74 59 . 88 68 70 27 78 44 51 72 43 . Received Heat Transfer 3838 | . 18 60 75 99 189 18 216 27 . 504 369 . . 411 . . 1735 54 63 Effects 6 | . . . . . 2 . . . . . . 1 . 3 . . . . . Energy Bleed 1 | . . . . . . . . . . . . . . 1 . . . . . Interference 5 | . . . . . 2 . . . . . . 1 . 2 . . . . . Siege Activations 21 | . . . . . . . . . . . . . . 10 3 . 8 . . Total Turns 412 | . . . . . . . . . . . . . . 161 46 . 205 . . Longest Duration 68 | . . . . . . . . . . . . . . 50 18 . 68 . . Robots Corrupted . | . . . . . . . . . . . . . . . . . . . . Combat Hostiles . | . . . . . . . . . . . . . . . . . . . . Parts Fried . | . . . . . . . . . . . . . . . . . . . . Impact Corruptions . | . . . . . . . . . . . . . . . . . . . . Robots Melted . | . . . . . . . . . . . . . . . . . . . . Combat Hostiles . | . . . . . . . . . . . . . . . . . . . . Parts Melted 2 | . . . . . . . . . . . . . . . 1 . 1 . . Heat Transferred 1407 | . . . 75 . . . . . . . . 37 . 370 185 . 740 . . Parts Sabotaged 2 | . . . . . . . . . . . . . . . . . 2 . . Parts Stolen . | . . . . . . . . . . . . . . . . . . . . Parts Stripped . | . . . . . . . . . . . . . . . . . . . . Power Chain Reactions . | . . . . . . . . . . . . . . . . . . . . Alert | -11 -10 -10 -10 -8 -8 -8 -8 -8 -8 -6 -6 -6 -6 -6 -5 -5 -5 -5 -5 ------- Run | Yrd Mat Min Sub Mat Gar Mat Sto Rec Scr Fac Ext Cet Arc Hub Fac Was Fac Upp Upp Peak Influence 1486 | 5 83 154 . 98 1486 885 698 328 . 210 233 297 155 1483 816 331 1409 . . Initial 724 | . 3 31 . . 9 724 324 203 . . 77 104 38 53 707 285 221 . . Average 363 | . 50 60 . 51 863 781 475 110 . 69 103 152 145 808 729 322 1018 . . Maximum Alert Level 4 | . . . . . 4 3 2 1 . 1 1 1 . 4 3 1 4 . . Low Security (%) 57 | 100 100 100 . 100 12 . . 78 . 95 96 80 100 1 . . . . . Level 1 8 | . . . . . 4 . 14 21 . 4 3 19 . 3 . 100 10 . . Level 2 7 | . . . . . 13 5 85 . . . . . . 10 2 . 1 . . Level 3 18 | . . . . . 33 94 . . . . . . . 74 97 . 41 . . Level 4 7 | . . . . . 35 . . . . . . . . 9 . . 46 . . Level 5 . | . . . . . . . . . . . . . . . . . . . . High Security . | . . . . . . . . . . . . . . . . . . . . Max Security . | . . . . . . . . . . . . . . . . . . . . Squads Dispatched 44 | . 2 . . . . . 2 . . 7 1 . . 15 1 . 16 . . Investigation 7 | . . . . . . . . . . 3 . . . 1 . . 3 . . Extermination 8 | . . . . . . . . . . 4 . . . 2 . . 2 . . Reinforcement 19 | . 2 . . . . . 1 . . . 1 . . 9 1 . 5 . . Assault 7 | . . . . . . . 1 . . . . . . 3 . . 3 . . Garrison 3 | . . . . . . . . . . . . . . . . . 3 . . Intercept . | . . . . . . . . . . . . . . . . . . . . Searches Triggered . | . . . . . . . . . . . . . . . . . . . . Construction Impeded 6 | . . . . . . . . . . . 1 . . 4 . . 1 . . Haulers Reinforced 2 | . . . . . . . . . . . . . . 1 . . 1 . . Active Scanning Responses . | . . . . . . . . . . . . . . . . . . . . Cargo Convoy Interrupts 1 | . . . . . . . . . . . . . . . . . 1 . . Stealth | -11 -10 -10 -10 -8 -8 -8 -8 -8 -8 -6 -6 -6 -6 -6 -5 -5 -5 -5 -5 --------- Run | Yrd Mat Min Sub Mat Gar Mat Sto Rec Scr Fac Ext Cet Arc Hub Fac Was Fac Upp Upp Distress Signals 17 | . . . . 1 . 3 2 . . 1 1 3 . 3 . . 3 . . Communications Jammed 35 | . . . . . . . . . . . . . . . . . 35 . . Distress Signals 34 | . . . . . . . . . . . . . . . . . 34 . . Times Spotted 302 | . 5 8 9 5 31 11 21 3 . 27 26 11 5 54 5 3 62 6 10 Peak Tracking Total 13 | . 2 3 2 2 8 4 5 1 . 4 5 5 1 9 4 2 13 5 9 Tactical Retreats 9 | . 1 . . . . 2 . . . 1 1 . . 1 . . 1 1 1 Traps | -11 -10 -10 -10 -8 -8 -8 -8 -8 -8 -6 -6 -6 -6 -6 -5 -5 -5 -5 -5 ------- Run | Yrd Mat Min Sub Mat Gar Mat Sto Rec Scr Fac Ext Cet Arc Hub Fac Was Fac Upp Upp Traps Triggered 12 | . . . 5 . 3 . 1 . . . . . . 2 1 . . . . Indirectly . | . . . . . . . . . . . . . . . . . . . . Trap Hack Attempts . | . . . . . . . . . . . . . . . . . . . . Triggered . | . . . . . . . . . . . . . . . . . . . . Disarmed . | . . . . . . . . . . . . . . . . . . . . Reprogrammed . | . . . . . . . . . . . . . . . . . . . . Reused . | . . . . . . . . . . . . . . . . . . . . Traps Extracted . | . . . . . . . . . . . . . . . . . . . . Installed . | . . . . . . . . . . . . . . . . . . . . Triggered . | . . . . . . . . . . . . . . . . . . . . Most Traps Carried 5 | . . 5 5 . . . . . . . . . . . . . . . . Machines | -11 -10 -10 -10 -8 -8 -8 -8 -8 -8 -6 -6 -6 -6 -6 -5 -5 -5 -5 -5 ---------- Run | Yrd Mat Min Sub Mat Gar Mat Sto Rec Scr Fac Ext Cet Arc Hub Fac Was Fac Upp Upp Machines Disabled 52 | . . . 1 . 12 1 3 1 . 9 1 . 2 9 . . 13 . . Max in Single Turn 4 | . . . 1 . 1 1 1 1 . 4 . . 1 3 . . . . . Garrison Access 2 | . . . . . . . . . . 1 . . . 1 . . . . . Garrison Relay 6 | . . . . . 6 . . . . . . . . . . . . . . Network Hub 2 | . . . . . . . . . . . . . . 2 . . . . . Energy Cycler 1 | . . . . . . . . . . . 1 . . . . . . . . Machines Repaired . | . . . . . . . . . . . . . . . . . . . . Machines Dismantled . | . . . . . . . . . . . . . . . . . . . . Machines Sabotaged . | . . . . . . . . . . . . . . . . . . . . Overloaded Fab Kills . | . . . . . . . . . . . . . . . . . . . . Hacking | -11 -10 -10 -10 -8 -8 -8 -8 -8 -8 -6 -6 -6 -6 -6 -5 -5 -5 -5 -5 --------- Run | Yrd Mat Min Sub Mat Gar Mat Sto Rec Scr Fac Ext Cet Arc Hub Fac Was Fac Upp Upp Machines Accessed 64 | . 1 . 2 8 5 2 3 10 5 13 4 1 . 3 1 . 5 1 . Terminals 37 | . 1 . . 6 5 1 2 6 . 6 4 1 . 2 1 . 1 1 . Fabricators 3 | . . . . . . . . . . 3 . . . . . . . . . Repair Stations 3 | . . . . . . . 1 . . 1 . . . . . . 1 . . Recycling Units 8 | . . . . 1 . . . 4 . . . . . . . . 3 . . Scanalyzers 3 | . . . . . . 1 . . . 2 . . . . . . . . . Garrison Access 3 | . . . . 1 . . . . . 1 . . . 1 . . . . . Total Hacks 187 | . 3 . 6 27 7 5 8 37 17 37 8 1 . 7 4 . 19 1 . Successful 106 | . . . 6 16 3 4 5 20 17 18 4 . . 2 1 . 9 1 . Failed 80 | . 3 . . 11 4 1 3 16 . 19 4 1 . 5 3 . 10 . . Catastrophic 14 | . . . . . 2 1 . 1 . . 2 1 . 2 2 . 3 . . Database Lockouts 1 | . . . . . . . . 1 . . . . . . . . . . . Manual 63 | . 3 . . 14 . 3 3 17 . 8 3 . . 2 1 . 9 . . Terminals 98 | . 3 . . 24 7 2 4 22 . 15 8 1 . 4 4 . 3 1 . Fabricators 7 | . . . . . . . . . . 7 . . . . . . . . . Repair Stations 13 | . . . . . . . 4 . . 5 . . . . . . 4 . . Recycling Units 29 | . . . . 2 . . . 15 . . . . . . . . 12 . . Scanalyzers 11 | . . . . . . 3 . . . 8 . . . . . . . . . Garrison Access 6 | . . . . 1 . . . . . 2 . . . 3 . . . . . Terminal Hacks 51 | . . . 6 8 3 . 1 6 17 4 3 . . 1 1 . . 1 . Record 17 | . . . 5 . . . . . 11 . . . . . . . . 1 . Part Schematic 4 | . . . . . . . . 4 . . . . . . . . . . . Robot Analysis 6 | . . . . . . . . 1 5 . . . . . . . . . . Prototype ID Bank 3 | . . . . 2 . . . . . 1 . . . . . . . . . Open Door 3 | . . . . . 1 . 1 . . . 1 . . . . . . . . Branch Access Points 2 | . . . . 1 . . . . . 1 . . . . . . . . . Alert Level 3 | . . . . . . . . . . 1 1 . . 1 . . . . . Unreport Threat 2 | . . . . . . . . . . 1 1 . . . . . . . . Locate Traps 1 | . . . . 1 . . . . . . . . . . . . . . . Registered Components 1 | . . . . 1 . . . . . . . . . . . . . . . Zone Layout 5 | . . . . 3 . . . 1 . . . . . . 1 . . . . Patrol Navigation 1 | . . . . . 1 . . . . . . . . . . . . . . Security Stations 1 | . . . . . 1 . . . . . . . . . . . . . . Derelict Proto ID Bank 2 | . . . 1 . . . . . 1 . . . . . . . . . . Fabricator Hacks 2 | . . . . . . . . . . 2 . . . . . . . . . Load Schematic 1 | . . . . . . . . . . 1 . . . . . . . . . Build 1 | . . . . . . . . . . 1 . . . . . . . . . Repair Station Hacks 10 | . . . . . . . 3 . . 4 . . . . . . 3 . . Scan Component 6 | . . . . . . . 2 . . 2 . . . . . . 2 . . Repair 4 | . . . . . . . 1 . . 2 . . . . . . 1 . . Recycling Unit Hacks 10 | . . . . 2 . . . 6 . . . . . . . . 2 . . Report Inventory 7 | . . . . 1 . . . 4 . . . . . . . . 2 . . Retrieve Components 3 | . . . . 1 . . . 2 . . . . . . . . . . . Scanalyzer 8 | . . . . . . 3 . . . 5 . . . . . . . . . Insert Component 5 | . . . . . . 2 . . . 3 . . . . . . . . . Analyze 3 | . . . . . . 1 . . . 2 . . . . . . . . . Garrison Access Hacks 2 | . . . . 1 . . . . . 1 . . . . . . . . . Unlock Access 1 | . . . . 1 . . . . . . . . . . . . . . . Seal Access 1 | . . . . . . . . . . 1 . . . . . . . . . Unauthorized Hacks 23 | . . . . 5 . 1 1 8 . 2 1 . . 1 . . 4 . . Terminals 15 | . . . . 5 . 1 1 4 . 2 1 . . . . . 1 . . Track 1 | . . . . 1 . . . . . . . . . . . . . . . Botnet 12 | . . . . 3 . 1 1 4 . 1 1 . . . . . 1 . . Operators 2 | . . . . 1 . . . . . 1 . . . . . . . . . Fabricators . | . . . . . . . . . . . . . . . . . . . . Repair Stations 3 | . . . . . . . . . . . . . . . . . 3 . . Recycling Units 4 | . . . . . . . . 4 . . . . . . . . . . . Tunnel 4 | . . . . . . . . 4 . . . . . . . . . . . Scrapoids 3 | . . . . . . . . . . . . . . . . . 3 . . Scanalyzers . | . . . . . . . . . . . . . . . . . . . . Garrison Access 1 | . . . . . . . . . . . . . . 1 . . . . . Jam 1 | . . . . . . . . . . . . . . 1 . . . . . Data Cores Recovered 1 | . . . . . . . . . . 1 . . . . . . . . . Used . | . . . . . . . . . . . . . . . . . . . . Hacking Detections 48 | . 1 . . 7 3 2 2 10 . 12 2 1 . 3 1 . 4 . . Full Trace Events 9 | . . . . . 1 . . 5 . 3 . . . . . . . . . Feedback Events . | . . . . . . . . . . . . . . . . . . . . Feedback Blocked . | . . . . . . . . . . . . . . . . . . . . Robot Schematics Acquired . | . . . . . . . . . . . . . . . . . . . . Robots Built . | . . . . . . . . . . . . . . . . . . . . Authchips . | . . . . . . . . . . . . . . . . . . . . Time . | . . . . . . . . . . . . . . . . . . . . Total Robot Build Rating . | . . . . . . . . . . . . . . . . . . . . Part Schematics Acquired 7 | . . . . . . 1 . 4 . 2 . . . . . . . . . Parts Built 1 | . . . . . . . . . . 1 . . . . . . . . . Authchips . | . . . . . . . . . . . . . . . . . . . . Time 116 | . . . . . . . . . . 116 . . . . . . . . . Total Part Build Rating 3 | . . . . . . . . . . 3 . . . . . . . . . Parts Repaired 4 | . . . . . . . 1 . . 2 . . . . . . 1 . . Time 246 | . . . . . . . 50 . . 88 . . . . . . 108 . . Parts Recycled . | . . . . . . . . . . . . . . . . . . . . Recycled Matter . | . . . . . . . . . . . . . . . . . . . . Retrieved Matter . | . . . . . . . . . . . . . . . . . . . . Retrieved Components 8 | . . . . 2 . . . 6 . . . . . . . . . . . Parts Scanalyzed 3 | . . . . . . 1 . . . 2 . . . . . . . . . Part Schematics Acquired 3 | . . . . . . 1 . . . 2 . . . . . . . . . Parts Damaged . | . . . . . . . . . . . . . . . . . . . . Bothacking | -11 -10 -10 -10 -8 -8 -8 -8 -8 -8 -6 -6 -6 -6 -6 -5 -5 -5 -5 -5 ------------ Run | Yrd Mat Min Sub Mat Gar Mat Sto Rec Scr Fac Ext Cet Arc Hub Fac Was Fac Upp Upp Used RIF Installer . | . . . . . . . . . . . . . . . . . . . . Robots Hacked 4 | . . . . . . . . . . 2 . . . . . . 2 . . Non-combat . | . . . . . . . . . . . . . . . . . . . . Combat . | . . . . . . . . . . . . . . . . . . . . Robot Hacks Applied . | . . . . . . . . . . . . . . . . . . . . Manual 4 | . . . . . . . . . . 2 . . . . . . 2 . . Relay Couplers Released 27 | . . . . . 26 . . . . . . . . 1 . . . . . Machine Destruction 24 | . . . . . 23 . . . . . . . . 1 . . . . . Programmers 3 | . . . . . 3 . . . . . . . . . . . . . . Fabnet Peak Effective % . | . . . . . . . . . . . . . . . . . . . . Robots Rewired 18 | . . . . . . . . . . . 18 . . . . . . . . Allies Hacked 2 | . . . . . . . . . . 1 . . . . . . 1 . . Hacks Repelled . | . . . . . . . . . . . . . . . . . . . . Allies | -11 -10 -10 -10 -8 -8 -8 -8 -8 -8 -6 -6 -6 -6 -6 -5 -5 -5 -5 -5 -------- Run | Yrd Mat Min Sub Mat Gar Mat Sto Rec Scr Fac Ext Cet Arc Hub Fac Was Fac Upp Upp Total Allies 62 | . . 3 . . 2 . 10 . . . 32 . . . . . 15 . . Largest Group 18 | . . 3 3 . 2 . 10 8 8 8 18 18 10 6 . . 5 . . Highest-Rated Group 575 | . . 40 40 . 64 . 173 128 128 128 575 575 330 213 . . 238 . . Highest-Rated Ally 50 | . . 16 16 . 39 . 29 16 16 16 47 39 39 39 . . 50 . . Total Orders 21 | . . . . . . . 4 2 4 4 . 2 . 5 . . . . . STAY 10 | . . . . . . . 1 1 2 2 . 1 . 3 . . . . . FOLLOW 8 | . . . . . . . . 1 2 2 . 1 . 2 . . . . . EXPLORE 2 | . . . . . . . 2 . . . . . . . . . . . . RETURN 1 | . . . . . . . 1 . . . . . . . . . . . . Ally Attacks 463 | . . 9 . . 40 . 18 . . 48 80 66 13 68 . . 121 . . Total Damage 8957 | . . 57 . . 593 . 273 . . 615 1427 1233 183 858 . . 3718 . . Kills 72 | . . 2 . . 8 . 2 . . 7 11 9 2 10 . . 21 . . Allies Corrupted 5 | . . . . . . . 1 . . . 3 . . 1 . . . . . Allies Melted 1 | . . . . . . . . . . 1 . . . . . . . . . Intel | -11 -10 -10 -10 -8 -8 -8 -8 -8 -8 -6 -6 -6 -6 -6 -5 -5 -5 -5 -5 ------- Run | Yrd Mat Min Sub Mat Gar Mat Sto Rec Scr Fac Ext Cet Arc Hub Fac Was Fac Upp Upp Robot Analysis Total 6 | . . . . . . . . 1 5 . . . . . . . . . . Derelict Logs Recovered 6 | . . 1 1 . . . . . 3 . . . . . . . . 1 . Drone Launches 2 | . . . . . . . 2 . . . . . . . . . . . . Drone Recoveries 1 | . . . . . . . 1 . . . . . . . . . . . . Exploration | -11 -10 -10 -10 -8 -8 -8 -8 -8 -8 -6 -6 -6 -6 -6 -5 -5 -5 -5 -5 ------------- Run | Yrd Mat Min Sub Mat Gar Mat Sto Rec Scr Fac Ext Cet Arc Hub Fac Was Fac Upp Upp Turns Passed 25655 | 63 163 1335 1677 498 1868 485 944 1839 7596 3002 1964 617 288 1577 254 308 1004 91 82 Spaces Moved 12013 | 38 68 782 1075 236 1098 287 422 838 2933 1169 943 335 88 746 103 126 387 215 124 Core 34 | 2 . . . . . . . . . . . . . . . . 5 . 27 Treads 8645 | 17 68 782 86 . 38 . 44 838 2933 1169 943 335 88 746 103 126 329 . . Legs 1518 | . . . . 28 825 287 378 . . . . . . . . . . . . Wheels 1451 | 19 . . 989 208 235 . . . . . . . . . . . . . . Hover . | . . . . . . . . . . . . . . . . . . . . Flight 365 | . . . . . . . . . . . . . . . . . 53 215 97 Fastest Speed 29 | 50 160 160 105 93 93 120 120 160 240 160 160 160 160 160 160 160 29 29 35 Average Speed 173 | 118 160 160 115 118 129 120 130 209 240 198 160 160 160 160 160 160 144 37 64 Slowest Speed 270 | 160 160 160 160 270 240 120 190 240 242 242 160 240 160 160 160 160 250 115 100 Overloaded Moves . | . . . . . . . . . . . . . . . . . . . . Propulsion Burnouts . | . . . . . . . . . . . . . . . . . . . . Robots Hopped 5 | . . . . . . . . . . . . . . . . . 3 1 1 Cave-ins Triggered 3 | . . . . . 1 . . . . 1 . . . . . 1 . . . Exploration Rate (%) 51 | 4 15 100 53 26 85 28 54 98 94 23 86 69 76 58 4 84 15 44 22 Regions Visited 19 Branch Regions 11 Pre-discovered Areas 7 | . . 1 2 . . . . 4 . . . . . . . . . . . Known Exits Taken 4 | . . . . 1 . 1 . . . 1 . . . . . . . 1 . Unknown Exits Taken 12 | 1 1 1 1 . . . 1 1 1 . 1 1 1 1 . . 1 . . Scrap Searched 16 | . . 1 9 . . . . . 4 . . . . . . . . 1 1 Spaces Dug 152 | . . . 19 4 55 12 3 6 . 18 . . . 10 . 20 5 . . Terrain Destroyed 644 | . . . 20 4 107 16 16 13 . 22 2 . 4 229 5 51 155 . . Melee 86 | . . . 15 4 37 12 . . . 18 . . . . . . . . . Projectile 135 | . . . 5 . . 4 16 13 . 1 2 . 4 41 5 20 24 . . AOE 423 | . . . . . 70 . . . . 3 . . . 188 . 31 131 . . Terrain Rammed . | . . . . . . . . . . . . . . . . . . . . Walls Destroyed . | . . . . . . . . . . . . . . . . . . . . Machines Disabled . | . . . . . . . . . . . . . . . . . . . . Actions | -11 -10 -10 -10 -8 -8 -8 -8 -8 -8 -6 -6 -6 -6 -6 -5 -5 -5 -5 -5 --------- Run | Yrd Mat Min Sub Mat Gar Mat Sto Rec Scr Fac Ext Cet Arc Hub Fac Was Fac Upp Upp Total 15750 | 50 110 824 1395 415 1374 390 734 900 3510 1730 1307 409 226 977 176 212 664 223 124 Wait 2192 | . 32 9 159 126 51 62 216 20 493 360 127 3 128 146 57 75 128 . . Move 11983 | 37 67 781 1074 236 1095 286 421 837 2932 1168 942 334 87 745 103 124 380 212 122 Hop 5 | . . . . . . . . . . . . . . . . . 3 1 1 Pick Up 162 | 3 1 8 26 8 12 3 7 13 28 23 7 8 . 1 3 . 11 . . Fast Attach 101 | 7 . . 6 3 7 . 10 2 7 14 6 16 2 1 . . 13 6 1 Attach 57 | . . . 2 5 8 . 1 . 1 11 5 3 . . 3 . 17 1 . Detach 24 | . . . . 1 2 . 1 . 4 4 1 7 . . . . 3 1 . Swap 171 | 2 1 . 22 2 22 11 14 3 2 42 13 1 3 9 4 3 17 . . Drop 214 | . 1 . 29 5 14 4 19 8 43 34 11 26 2 2 . 1 13 2 . Fire 475 | 1 8 26 40 12 40 11 45 17 . 42 56 11 4 71 6 8 77 . . Melee 198 | . . . 37 17 105 13 . . . 26 . . . . . . . . . Ram . | . . . . . . . . . . . . . . . . . . . . Kick . | . . . . . . . . . . . . . . . . . . . . Crush 9 | . . . . . . . . . . 5 . . . 2 . . 2 . . Escape Stasis 19 | . . . . . 18 . . . . . . . . . . 1 . . . Rewire 139 | . . . . . . . . . . . 139 . . . . . . . . Trap . | . . . . . . . . . . . . . . . . . . . . Miscellaneous 1 | . . . . . . . . . . 1 . . . . . . . . . Route ------- -11/Scrapyard -10/Materials -10/Mines (discovered 3 exits: [*Mat x2] / *Sub) -10/Subcaves (discovered 2 exits: *Mat x2) -8/Materials (discovered 3 exits: Fac / Sto / Gar) -8/Garrison (discovered 3 exits: *Mat x3) -8/Materials -8/Storage -8/Recycling (discovered 2 exits: *Fac / *Scr) -8/Scraptown (discovered 2 exits: *Fac x2) -6/Factory (discovered 4 exits: Low x2 / *Ext x2) -6/Extension (discovered 3 exits: *Fac x2 / *Cet) -6/Cetus (discovered 2 exits: *Fac / [*Arc]) -6/Archives (discovered 2 exits: *Fac / *Hub) -6/Hub_04(d) (discovered 2 exits: *Fac x2) -5/Factory -5/Waste -5/Factory -5/Upper Caves -5/Upper Caves History --------- Turn | Location | Event 18 | -11/Scrapyard | Discovered new exit (range 15) 64 | -11/Scrapyard | Entered Materials 176 | -10/Materials | Discovered new exit (range 10) 227 | -10/Materials | Entered Mines 243 | -10/Mines | Assisted by bots powering up and referring to "LRC-V3" 312 | -10/Mines | Build established: Mutant 379 | -10/Mines | Discovered new exit (range 7) 393 | -10/Mines | Learned location of Zion (-6) 644 | -10/Mines | Discovered new exit (range 8) 695 | -10/Mines | Found a hidden stash of uninstalled traps 1272 | -10/Mines | Discovered new exit (range 6) 1562 | -10/Mines | Entered Subcaves 1562 | -10/Subcaves | Accompanied by 3 allies 1568 | -10/Subcaves | Shifting Twisted Machinery released Sub. Machine Gun 1597 | -10/Subcaves | Shifting Twisted Machinery released Sub. Monowheel 1646 | -10/Subcaves | Shifting Twisted Machinery released Mak. Laser 1648 | -10/Subcaves | Met a Zionite searching for "candidates" 1663 | -10/Subcaves | Shifting Twisted Machinery released Mak. System Restoration Module 1674 | -10/Subcaves | Lost 3 allies 1761 | -10/Subcaves | Shifting Twisted Machinery released Flamer 1814 | -10/Subcaves | A swath of the cavern ceiling suddenly collapsed 1877 | -10/Subcaves | Shifting Twisted Machinery released Battle Cannon 1987 | -10/Subcaves | Core integrity fell below 50% 2096 | -10/Subcaves | Visited 4L-MR0's lab 2116 | -10/Subcaves | Found Powered Cannon 2283 | -10/Subcaves | Build established: Scavenger-Mutant 2341 | -10/Subcaves | Discovered new exit (range 7) 2418 | -10/Subcaves | Learned location of 1 exit from Materials 2546 | -10/Subcaves | Visited Clippyterm 2549 | -10/Subcaves | Learned location of Section 7 (-2) 2549 | -10/Subcaves | Learned Research machine intel 2741 | -10/Subcaves | Build established: Mutant 3116 | -10/Subcaves | Build established: Derelict-Mutant 3163 | -10/Subcaves | Discovered new exit (range 18) 3239 | -10/Subcaves | Entered Materials 3239 | -8/Materials | Evolved 4 slots: Propulsion x2, Utility x1, Weapon x1 3240 | -8/Materials | Identified exit to Factory 3241 | -8/Materials | Identified exit to Storage 3737 | -8/Materials | Build established: Mutant 3737 | -8/Materials | Identified exit to Garrison 3737 | -8/Materials | Entered Garrison 3798 | -8/Garrison | Crushed by falling debris 3812 | -8/Garrison | Garrison Relay disabled 3839 | -8/Garrison | Triggered checkpoint 3922 | -8/Garrison | Learned Materials security intel 4028 | -8/Garrison | Triggered checkpoint 4049 | -8/Garrison | Triggered checkpoint 4055 | -8/Garrison | Triggered checkpoint 4082 | -8/Garrison | Destroyed 15 combat bots 4083 | -8/Garrison | Lost 3 parts (1n1u1w) 4213 | -8/Garrison | Lost 3 parts (2n1u) 4213 | -8/Garrison | Rescued a captive Derelict 4215 | -8/Garrison | Rescued a captive Derelict 4270 | -8/Garrison | Garrison Relay disabled 4296 | -8/Garrison | Discovered new exit (range 12) 4301 | -8/Garrison | Triggered checkpoint 4326 | -8/Garrison | Garrison Relay disabled 4384 | -8/Garrison | Build established: Scavenger-Mutant 4527 | -8/Garrison | Discovered new exit (range 15) 4539 | -8/Garrison | Triggered checkpoint 4564 | -8/Garrison | Garrison Relay disabled 5037 | -8/Garrison | Discovered new exit (range 14) 5205 | -8/Garrison | Triggered checkpoint 5264 | -8/Garrison | Garrison Relay disabled 5273 | -8/Garrison | Garrison Relay disabled 5339 | -8/Garrison | Attempted to access garrison exit controls, blocked by remote lockdown 5460 | -8/Garrison | Build established: Scavenger-Skirmisher 5490 | -8/Garrison | Attempted to access garrison exit controls, blocked by remote lockdown 5605 | -8/Garrison | Entered Materials 6066 | -8/Materials | Discovered exit to Storage (range 11) 6090 | -8/Materials | Entered Storage 6801 | -8/Storage | Repaired Hvy. Machine Gun 6890 | -8/Storage | First assault squad dispatched 6931 | -8/Storage | Used back door to open Recycling access 6931 | -8/Storage | Discovered new exit (range 5) 6959 | -8/Storage | Assisted by bots powering up and referring to "LRC-V3" 7034 | -8/Storage | Entered Recycling 7034 | -8/Recycling | Accompanied by 8 allies 7251 | -8/Recycling | Build established: Commander-Skirmisher 7915 | -8/Recycling | Discovered new exit (range 16) 8813 | -8/Recycling | Scanned before Scraplab entrance 8851 | -8/Recycling | Entered Scraplab 8870 | -8/Recycling | Discovered new exit (range 2) 8873 | -8/Recycling | Entered Scraptown 8873 | -8/Scraptown | Accompanied by 8 allies 8873 | -8/Scraptown | System corruption cleaned by C-Scrubber 9061 | -8/Scraptown | Heard Great Nut preacher, LISTEN AND RECITE! 9181 | -8/Scraptown | Visited CPS Storage 9233 | -8/Scraptown | Visited Red Mages 9913 | -8/Scraptown | Discovered new exit (range 20) 10387 | -8/Scraptown | Visited Cyclists 10479 | -8/Scraptown | Visited Spacefarers 10608 | -8/Scraptown | Visited Assassins FH 10735 | -8/Scraptown | Visited Symbiants 10817 | -8/Scraptown | Visited SPCMW 11373 | -8/Scraptown | Build established: Commander-Gunner 12351 | -8/Scraptown | Scanned Subdweller tech in exchange for log data 12358 | -8/Scraptown | Learned Factory garrison access intel 12363 | -8/Scraptown | Learned Factory emergency access door positions 12505 | -8/Scraptown | Visited UFD Registry 12505 | -8/Scraptown | Registered with UFD as "Fluxripper" 12587 | -8/Scraptown | Visited Abandonware Association 12620 | -8/Scraptown | Learned abandonware demo "REVENGE.EXE" 12620 | -8/Scraptown | Learned abandonware demo "KABOOM.EXE" 12680 | -8/Scraptown | Visited Research Penetration Think Tank 12947 | -8/Scraptown | Discovered new exit (range 5) 13036 | -8/Scraptown | Visited A0-MCA Data Center 13094 | -8/Scraptown | Visited Analyses Database 13257 | -8/Scraptown | Visited Scrapoid Pod Storage 13300 | -8/Scraptown | Visited Science Guys 13377 | -8/Scraptown | Visited Chapter 10 13466 | -8/Scraptown | Visited Curators Association 14940 | -8/Scraptown | Build established: Commander-Tank 15070 | -8/Scraptown | Entered Cyclist Reading Room 15785 | -8/Scraptown | Found Scrapoid Pod 15880 | -8/Scraptown | Given a B+ rating by A0-MCA 15888 | -8/Scraptown | Found A0-MCA's Component Scanner 16311 | -8/Scraptown | Guru changed UFD alias to "Chaincore" 16469 | -8/Scraptown | Entered Factory 16469 | -6/Factory | Accompanied by 8 allies 16469 | -6/Factory | Evolved 4 slots: Propulsion x1, Utility x2, Weapon x1 16471 | -6/Factory | Loaded intel: 3 garrison access locations 16979 | -6/Factory | Build established: Commander-Skirmisher 17716 | -6/Factory | Fabricated Enh. Autogun (x1) 18262 | -6/Factory | Repaired Hpw. Tractor Beam 18313 | -6/Factory | Repaired Hvy. Machine Gun 18460 | -6/Factory | Identified exit to Lower Caves 18460 | -6/Factory | Identified exit to Extension 18652 | -6/Factory | Found Prototype Processor 18652 | -6/Factory | Identified Exp. Targeting Computer 18728 | -6/Factory | Crushed by falling debris 18776 | -6/Factory | Found Prototype Launcher 19309 | -6/Factory | Build established: Gunner 19471 | -6/Factory | Entered Extension 19769 | -6/Extension | Rescued a captive Derelict 19770 | -6/Extension | Rescued a captive Derelict 19872 | -6/Extension | Energy Cycler disabled 19872 | -6/Extension | Rescued a captive Derelict 19872 | -6/Extension | Rescued a captive Derelict 19872 | -6/Extension | Rescued a captive Derelict 19872 | -6/Extension | Rescued a captive Derelict 19873 | -6/Extension | Rescued a captive Derelict 19875 | -6/Extension | Rescued a captive Derelict 19877 | -6/Extension | Rescued a captive Derelict 19880 | -6/Extension | Rescued a captive Derelict 19880 | -6/Extension | Rescued a captive Derelict 19881 | -6/Extension | Rescued a captive Derelict 19883 | -6/Extension | Rescued a captive Derelict 19886 | -6/Extension | Scrapoid Pod released 06E05-D (x5) 19887 | -6/Extension | Rescued a captive Derelict 19888 | -6/Extension | Rescued a captive Derelict 19909 | -6/Extension | Identified Scatter Rocket Array 20190 | -6/Extension | Spotted B-75 Beast 20196 | -6/Extension | Extracted ID and sensor layout for unrecognized location from A7's data core 20201 | -6/Extension | Destroyed B-75 Beast 20221 | -6/Extension | Disrupted transfer network 20223 | -6/Extension | Discovered new exit (range 15) 20408 | -6/Extension | Lost 4 allies 20424 | -6/Extension | Build established: Scavenger-Gunner 20850 | -6/Extension | Build established: Commander-Gunner 21251 | -6/Extension | Lost 3 allies 21375 | -6/Extension | Discovered new exit (range 10) 21376 | -6/Extension | Discovered new exit (range 6) 21435 | -6/Extension | Entered Cetus 21435 | -6/Cetus | Accompanied by 18 allies 21456 | -6/Cetus | Spotted Cetus Guard 21456 | -6/Cetus | Spotted Cetus Guard 21459 | -6/Cetus | Spotted Cetus Guard 21459 | -6/Cetus | Spotted Cetus Guard 21473 | -6/Cetus | Allies destroyed Cetus Guard 21474 | -6/Cetus | Destroyed Cetus Guard 21478 | -6/Cetus | Allies destroyed Cetus Guard 21480 | -6/Cetus | Allies destroyed Cetus Guard 21507 | -6/Cetus | Lost 7 allies 21679 | -6/Cetus | Discovered new exit (range 15) 21706 | -6/Cetus | Spotted Cetus Guard 21706 | -6/Cetus | Spotted Cetus Guard 21709 | -6/Cetus | Spotted Cetus Guard 21716 | -6/Cetus | Allies destroyed Cetus Guard 21716 | -6/Cetus | Allies destroyed Cetus Guard 21720 | -6/Cetus | Allies destroyed Cetus Guard 21721 | -6/Cetus | Spotted Cetus Guard 21725 | -6/Cetus | Allies destroyed Cetus Guard 21947 | -6/Cetus | Discovered new exit (range 15) 21956 | -6/Cetus | Met Revision 17 22052 | -6/Cetus | Entered Archives 22052 | -6/Archives | Accompanied by 10 allies 22111 | -6/Archives | Discovered new exit (range 16) 22117 | -6/Archives | Lost 4 allies 22310 | -6/Archives | Discovered new exit (range 16) 22340 | -6/Archives | Entered Hub_04(d) 22340 | -6/Hub_04(d) | Accompanied by 6 allies 22375 | -6/Hub_04(d) | Build established: Scavenger-Gunner 22553 | -6/Hub_04(d) | Destroyed 7 combat bots 22721 | -6/Hub_04(d) | Discovered new exit (range 15) 23390 | -6/Hub_04(d) | First assault squad dispatched 23422 | -6/Hub_04(d) | Discovered new exit (range 7) 23464 | -6/Hub_04(d) | Destroyed 9 combat bots 23808 | -6/Hub_04(d) | Destroyed 9 combat bots 23892 | -6/Hub_04(d) | Network Hub disabled 23893 | -6/Hub_04(d) | Network Hub disabled 23894 | -6/Hub_04(d) | Spotted Lightning 23912 | -6/Hub_04(d) | Spotted Lightning 23915 | -6/Hub_04(d) | Spotted Lightning 23917 | -6/Hub_04(d) | Entered Factory 23917 | -5/Factory | Evolved 2 slots: Utility x2 24171 | -5/Factory | Sucked down chute 24171 | -5/Factory | Entered Waste 24186 | -5/Waste | EMP discharged 24189 | -5/Waste | Spotted C-40 Crusher 24206 | -5/Waste | Destroyed C-40 Crusher 24213 | -5/Waste | Build established: Scavenger-Skirmisher 24263 | -5/Waste | Spotted C-40 Crusher 24286 | -5/Waste | EMP discharged 24286 | -5/Waste | System corruption reached 10% 24302 | -5/Waste | Spotted C-40 Crusher 24386 | -5/Waste | EMP discharged 24419 | -5/Waste | Crushed by falling debris 24431 | -5/Waste | Spotted C-40 Crusher 24458 | -5/Waste | Discovered new exit (range 12) 24479 | -5/Waste | Entered Factory 24532 | -5/Factory | Scrapoid reinforcements arrived 24712 | -5/Factory | Repaired Centrium Heavy Treads? 24779 | -5/Factory | First assault squad dispatched 24925 | -5/Factory | Destroyed 12 combat bots 25020 | -5/Factory | Scrapoids reinforcements arrived? 25022 | -5/Factory | Garrison activated, responded to threat 25053 | -5/Factory | Build established: Scavenger-Gunner 25076 | -5/Factory | Lost 5 allies 25096 | -5/Factory | System corruption reached 30% 25148 | -5/Factory | Lost 4 parts (1p1n1u1w) 25330 | -5/Factory | Scrapoids reinforcements arrived? 25331 | -5/Factory | Cargo convoy interrupted 25371 | -5/Factory | Lost 3 allies 25426 | -5/Factory | Core integrity fell below 50% 25450 | -5/Factory | Destroyed 12 combat bots 25456 | -5/Factory | Found Prototype Processor 25456 | -5/Factory | Identified Exp. Terrain Scan Processor 25463 | -5/Factory | Found Prototype Device 25463 | -5/Factory | Identified Exp. Actuator Array 25477 | -5/Factory | Discovered new exit (range 15) 25483 | -5/Factory | Entered Upper Caves 25505 | -5/Upper Caves | Attracted the attention of an 0b10 checkpoint 25518 | -5/Upper Caves | Core integrity fell below 20% 25545 | -5/Upper Caves | Lost 22 parts (1p8n6u7w) 25545 | -5/Upper Caves | Identified exit to Upper Caves 25574 | -5/Upper Caves | Entered another Upper Caves area 25656 | -5/Upper Caves | Destroyed by G-67 Veteran with Field Laser Last Messages --------------- 25575_ VTOL Module destroyed. 25575_ SF-5T1(S) suffers critical hit (Burn). 25580_ SF-5T1(S) heat short circuits Med. Treads. 25583_ SF-5T1(S) heat short circuits Neutrino Core. 25583_ SF-5T1(S) destroyed. 25589_ System corrupted: Component data lost. 25600_ Searching scrap... 25600_ Found Force Field. 25600_ Found Mak. Flight Unit. 25600_ Found Beamcaster. 25600_ Found 51 Matter. 25601_ Acquired 51 matter. 25602_ Acquired Mak. Flight Unit. 25608_ WJDMG4UT3DOKQZ&I6:0BS&RWLHB7&GZYWPRBPW/O 25627_ System corrupted: Matter fused (-9). 25642_ System corrupted: IFF burst signal emitted. Map ----- +----------------------------------------------------+ | ?????????????????????????????# #???? | | ????????????????????????? ???# #????? | | ??????????????????????? ##### ##????? | | ??????????????????????????????????????## ##?????? | | ???????????????????????????????????????# ##??????? | | ????????????????????????????????????#??# #???##??? | | ?????????????????????????????????????### #?? ###? | | ?????????????????????????????????????# #?? #?? | | ?????????????????????????????????????# ##? #??? | | ??????????????????????????? ?????????# #?? #???? | | ?????????????????????????? ??????????# #? #??#? | | ??????????????? ??????????#??????????# ## #????# | | ???????????????????????????????????### # #?????? | | ???????????????? ?????#???????????## #??????? | | ?????????????????????????#???????## ##????#?? | | ?????????????????????????????????# #????#??? | | ???????????????????????????######## #???????? | | ??????????????????????????## ## ###?????? | | ??????????????????????????# ## #??????? | | ??????????????????????????# ### #??????? | | ?????????????????????????## #### #??????? | | ?????????????????????????# ### ##??????? | | ?????????????????????????# ## ####????#??? | | ?????????????????????????## ##??????#???? | | ???????????????? ?????##### #??????????#? | | ?????????????????????## @ ##???????#??#? | | ??????????????????#?## ##????????????? | | ????????????????????# ##??##????????? | | ???????????????????# ####????????## | | ??????????????????# g ##????????# | | ??????????????????# ##???????# | | ????????????????? g ######### | | ??????????????? | | ???????????????# ## | | ??????????????# ?##### ####### | | ?????????????? ??????## #?????## | | ?????????????? ???????###### ##??????# | | ????????????????###?????????????## #???????# | | ?????????????????????????????????# #???????# | | ?????????????????????????????????# ???????? | | ?????????????????????????????????# ??????# | | ?????????????????????????#?????? ??#??? | | ???????????????????????????????? ??????? | | ??????????????????????????????? ## ?????? | | ??????????????????????????????? ?# ??????? | | ?????????????????????????????????# ??????? | | ??????????????????????????????????? ## ??????? | | ????????????????????????????????????? ?? ???????? | | ?????????????????????????????????????????????????? | | ?????????????????????????????????????????????????? | +----------------------------------------------------+ Best States ------------- Heat Dissipation 59 Energy Generation 25 Energy Capacity 350 Matter Stores 300 Matter Capacity 300 Sight Range 21 Robot Scan Range 15 Terrain Scan Range 20 Terrain Scan Density 1010 Jamming Range 14 Base Temperature (-) 150 Corruption Containment 8 Armor Coverage 450 Resistance: TH 10 Melee Speed Boost 20 Evasion (%) 63 Targeting Accuracy 18 Recoil Reduction 5 Kinecelleration 30 Item Schematics ----------------- Multitool | -8/Materials | Scanalyzed Hpw. Tractor Beam | -8/Recycling | Hacked Imp. Signal Interpreter | -8/Recycling | Hacked Adv. Signal Interpreter | -8/Recycling | Hacked Imp. System Shield | -8/Recycling | Hacked Enh. Autogun | -6/Factory | Scanalyzed Mak. Thermal Plating | -6/Factory | Scanalyzed Robot Schematics ------------------ None Fabricated ------------ Enh. Autogun | x1 | -6/Factory Alien Tech Used ----------------- None Achievements -------------- None Challenges ------------ None Game ------ Seed LatentDeepMantle Manual? 0 Play Time 05:04:19 Cumulative 357.8 hours Start 2024.10.03 @ 23:00:28 End 2024.10.04 @ 04:44:25 Sessions 1 Manual Loads 0 Difficulty Rogue Special Mode None Game No. 119 Rogue 117 Adventurer 0 Explorer 2 Win Type - Total 8 Types 6/0/1/1/0/0/0/0/0 Lore% 73 Gallery% 81 Achievement% 74 Wizard Run 0 Options --------- Layout 2 ASCII 0 Keyboard 1 Movement Numpad Keybinds 0 Fullscreen 1 Font 24/Smallcaps Map View 50x44 Zoom Use 0% Tactical HUD 1 Map Filters NONE Filters NONE Steam 0 RUN: b29489a8-d645-4fa6-8642-84d71b6bd999